[Event "14th BPB Limburg Open 2022"]
[Site "Maastricht"]
[Date "2022.06.03"]
[Round "1.1"]
[White "Warmerdam, Max"]
[Black "Van Dijk, Harold"]
[Result "1-0"]
[ECO "A57"]
[WhiteElo "2614"]
[BlackElo "2253"]
[Annotator "TA"]
[PlyCount "101"]
[EventDate "2022.06.03"]
[EventType "swiss"]
[EventCountry "NED"]
[SourceTitle "playchess.com"]
[Source "ChessBase"]
[SourceQuality "1"]
[TimeControl "7200+15"]

{[%evp 13,100,26,38,27,35,41,48,47,62,68,97,99,90,86,114,111,105,111,111,115,107,107,110,87,115,108,110,114,131,130,127,110,133,133,133,133,133,129,124,130,142,122,123,116,115,104,154,154,154,0,156,159,149,99,99,100,159,162,269,151,156,151,148,160,165,163,163,137,306,270,348,359,348,335,354,340,329,272,248,225,204,212,320,289,376,288,29974,29975,29999]} 1. d4 {[%emt 0:00:23]} Nf6 {[%emt 0:00:18]} 2. c4 {[%emt 0:00:06]} c5 {[%emt 0:00:43]} 3. d5 {[%emt 0:01:12]} b5 {[%emt 0:00:09]} 4. cxb5 {[%emt 0:00:07]} a6 {[%emt 0:00:16]} 5. e3 {[%emt 0:01:14]} e6 {[%emt 0:00:35]} 6. Nc3 {[%emt 0:01:33]} exd5 {[%emt 0:00:17]} 7. Nxd5 {[%emt 0:11:09]} Bb7 {[%emt 0:00:34]} 8. Nxf6+ {[%emt 0:01:03] A57: Benko/Volga Gambit.} Qxf6 {[%emt 0:00:14]} 9. Nf3 {[%emt 0:00:21]} Bd6 {[%emt 0:00:16]} 10. Bd2 {[%emt 0:12:54] White is slightly better.} O-O {[%emt 0:05:42]} 11. Bc3 {[%emt 0:00:27]} Qe7 {[%emt 0:00:33] [#]} 12. b6 $146 {[%emt 0:08:35] Against Bc7} ({Predecessor:} 12. Bc4 axb5 13. Bxb5 Nc6 14. O-O Rab8 15. Qd3 Nb4 16. Bxb4 Bxf3 17. gxf3 Bxh2+ 18. Kxh2 {0-1 (49) Evengroen,H (1968)-Hendriks,W (2422) Dieren 2012}) 12... Nc6 {[%emt 0:04:41]} 13. Bc4 $36 {[%emt 0:10:20][%mdl 2048] Black is under strong pressure.} Ne5 {[%emt 0:10:56]} 14. Bd5 {[%emt 0:01:52]} Rab8 {[%emt 0:01:44]} 15. Bxb7 {[%emt 0:16:40]} Rxb7 {[%emt 0:02:45] [#]} 16. Qd5 $1 {[%emt 0:00:48]} Nxf3+ {[%emt 0:00:51]} 17. gxf3 {[%emt 0:00:05][%cal Bg2f3,Bf3f4,Bf4f5][%mdl 32]} Rxb6 {[%emt 0:00:34]} 18. O-O-O {[%emt 0:00:31]} Qe6 {[%emt 0:04:12]} 19. f4 {[%emt 0:03:13]} f6 {[%emt 0:05:27]} 20. h4 {[%emt 0:02:06][%cal Bh2h4,Bh4h5][%mdl 32]} (20. Rhg1 {keeps more tension.} Rf7 21. h4 f5 22. h5) 20... Qxd5 {[%emt 0:05:57]} 21. Rxd5 {[%emt 0:00:09]} Kf7 {[%emt 0:01:13]} 22. f5 {[%emt 0:09:02]} Rc6 {[%emt 0:07:29]} 23. h5 {[%emt 0:01:12]} h6 {[%emt 0:01:22]} 24. Kc2 {[%emt 0:03:50]} Rb8 {[%emt 0:02:48]} 25. Rhd1 {[%emt 0:00:46]} Ke7 {[%emt 0:00:21]} 26. Rg1 {[%emt 0:00:49]} Kf7 {[%emt 0:00:47]} 27. f4 {[%emt 0:15:31] Hoping for Rgd1.} Rb7 {[%emt 0:06:10]} 28. Rgd1 {[%emt 0:00:39] White is more active.} Ke7 {[%emt 0:00:20]} 29. R5d2 {[%emt 0:04:32]} c4 {[%emt 0:06:01]} ({Black should try} 29... Bb8) 30. Rg2 $16 {[%emt 0:01:44]} Kf7 {[%emt 0:00:15]} 31. Rgd2 {[%emt 0:00:06]} Ke7 {[%emt 0:00:12]} 32. Rg1 {[%emt 0:00:06]} Kf7 {[%emt 0:00:12] [#]} 33. Rdg2 {[%emt 0:00:04]} (33. Rg6 $142 $1) 33... Bf8 {[%emt 0:00:21]} 34. e4 {[%emt 0:00:04]} Rb5 {[%emt 0:02:59]} (34... Rd6 $142) 35. Rg6 {[%emt 0:04:18]} d6 {[%emt 0:06:14]} (35... Rbb6 $142 36. e5 Rb5) 36. e5 {[%emt 0:00:12]} ({White should play} 36. a4 $18 Rb7 37. e5 dxe5 38. fxe5) 36... dxe5 {[%emt 0:00:36]} 37. fxe5 {[%emt 0:00:05]} Rd5 {[%emt 0:00:26]} 38. R1g4 {[%emt 0:01:08]} a5 {[%emt 0:05:30]} 39. a4 {[%emt 0:01:52]} Ke7 {[%emt 0:02:49]} 40. Re4 {[%emt 0:01:19] exf6+ is the strong threat.} Kd7 $2 {[%emt 0:03:49] This move loses the game for Black.} (40... Kf7 $16 {keeps fighting.} 41. Re3 Be7 42. e6+ Kf8) 41. Rd4 $18 {[%emt 0:03:33]} ({Don't take} 41. exf6 $6 gxf6 42. Rd4 (42. Bxf6 Rxf5 43. Rd4+ Ke8 $14) 42... Rcd6 $16) 41... Rxd4 {[%emt 0:01:47]} 42. Bxd4 {[%emt 0:00:30][%mdl 4096] Endgame KRB-KRB} Ke7 {[%emt 0:04:11]} 43. Bc3 {[%emt 0:01:05]} Kf7 {[%emt 0:01:40]} 44. Bxa5 {[%emt 0:02:29] Strongly threatening Bc3.} Ra6 {[%emt 0:00:17]} 45. Bc3 {[%emt 0:00:05]} Rxa4 {[%emt 0:00:05]} 46. exf6 {[%emt 0:00:02]} gxf6 {[%emt 0:00:36]} 47. Rxf6+ {[%emt 0:00:02]} Kg8 {[%emt 0:02:12]} (47... Ke7 $142 48. Re6+ Kf7) 48. Rg6+ {[%emt 0:00:06]} Kh7 {[%emt 0:00:30]} 49. Rc6 {[%emt 0:00:02]} Ra1 $2 {[%emt 0:00:16]} (49... Kg8 $18 50. Rc7 Ra1) 50. Rc8 {[%emt 0:00:09]} Bd6 {[%emt 0:01:39]} 51. Rh8# {[%emt 0:00:02] Weighted Error Value: White=0.14 (very precise) /Black=0.37} 1-0

[Event "14th BPB Limburg Open 2022"]
[Site "Maastricht"]
[Date "2022.06.03"]
[Round "1.2"]
[White "Wild, Achim"]
[Black "Donchenko, Alexander"]
[Result "0-1"]
[ECO "A06"]
[WhiteElo "2258"]
[BlackElo "2599"]
[Annotator "TA"]
[PlyCount "50"]
[EventDate "2022.06.03"]
[EventType "swiss"]
[EventCountry "NED"]
[SourceTitle "playchess.com"]
[Source "ChessBase"]
[SourceQuality "1"]
[TimeControl "7200+15"]

{[%evp 9,50,-12,2,-21,-26,-21,-10,-41,-34,-42,-35,-50,-50,-50,-48,-50,-6,0,-16,-8,-7,-2,0,-19,-27,-52,-10,-41,-36,-48,-36,-101,-103,-127,-119,-190,-179,-341,-306,-404,-385,-388,-372]} 1. Nf3 {[%emt 0:02:59]} d5 {[%emt 0:00:17]} 2. e3 {[%emt 0:00:09]} c5 {[%emt 0:00:33]} 3. b3 {[%emt 0:00:11]} Nc6 {[%emt 0:00:21]} 4. Bb5 {[%emt 0:00:57]} f6 {[%emt 0:00:42]} 5. Bxc6+ {[%emt 0:02:37]} bxc6 {[%emt 0:00:03] [#]} 6. O-O $146 {[%emt 0:13:06] A06: Réti Opening: 1 Nf3 d5.} ({Predecessor:} 6. d4 cxd4 7. exd4 Kf7 8. O-O h5 9. c4 g5 10. Nc3 e6 11. Re1 Bd6 12. Nd2 {1-0 (52) Nakamura,H (2750)-Vidit,S (2723) Chess.com INT 2022}) 6... e5 {[%emt 0:02:18]} 7. d3 {[%emt 0:00:15]} Bd6 {[%emt 0:02:55]} 8. e4 {[%emt 0:03:28] The position is equal.} Ne7 {[%emt 0:04:35][%cal Bg8e7,Be7g6,Bg6f4,Bf4e6,Be6d4][%mdl 32]} 9. Nc3 {[%emt 0:09:04]} Be6 {[%emt 0:14:54]} 10. Ba3 {[%emt 0:01:33]} Ng6 {[%emt 0:01:02]} 11. Na4 {[%emt 0:03:49]} Qe7 {[%emt 0:00:58]} 12. Qe1 {[%emt 0:04:10]} Bg4 {[%emt 0:09:08] Black wants to play ...Bxf3.} 13. Nd2 $1 {[%emt 0:01:31]} Nf4 {[%emt 0:00:14]} 14. f3 {[%emt 0:00:43]} Bd7 {[%emt 0:01:46]} 15. Kh1 {[%emt 0:02:14]} O-O {[%emt 0:01:14]} 16. Qf2 {[%emt 0:03:41][%cal Ra3c5]} Ne6 {[%emt 0:00:28]} 17. Rfe1 {[%emt 0:00:49]} f5 {[%emt 0:09:33]} 18. Bb2 {[%emt 0:09:44]} Nd4 {[%emt 0:05:19]} 19. Rac1 {[%emt 0:09:28]} Rae8 {[%emt 0:12:19]} 20. c3 {[%emt 0:16:49] [#]} (20. Nf1 $15) 20... Ne6 $1 $36 {[%emt 0:01:10][%cal Oc5c4][%mdl 2048] Black is really pushing. Black is more active.} 21. Rcd1 {[%emt 0:00:14]} Nf4 {[%emt 0:09:26]} 22. Qf1 {[%emt 0:00:07]} (22. Nf1 $17) 22... c4 $19 {[%emt 0:04:08]} 23. dxc4 {[%emt 0:01:58]} (23. bxc4 fxe4 24. dxe4) 23... fxe4 {[%emt 0:02:29]} 24. c5 {[%emt 0:01:51]} Bb8 {[%emt 0:01:12] [#] White must now prevent ...exf3.} 25. fxe4 {[%emt 0:00:31]} Bg4 {[%emt 0:01:23] Weighted Error Value: White=0.24 (precise) /Black=0.06 (flawless)} 0-1

[Event "14th BPB Limburg Open 2022"]
[Site "Maastricht"]
[Date "2022.06.03"]
[Round "1.3"]
[White "Gurevich, Mikhail"]
[Black "Baselmans, Luuk"]
[Result "1-0"]
[ECO "A28"]
[WhiteElo "2573"]
[BlackElo "2233"]
[Annotator "TA"]
[PlyCount "105"]
[EventDate "2022.06.03"]
[EventType "swiss"]
[EventCountry "NED"]
[SourceTitle "playchess.com"]
[Source "ChessBase"]
[SourceQuality "1"]
[TimeControl "7200+15"]

{[%evp 9,105,0,-7,-4,-8,0,-2,4,0,-35,-43,-40,8,0,0,0,8,0,16,5,3,16,27,6,27,7,24,3,5,10,16,15,19,0,0,0,0,0,0,0,0,0,0,0,0,0,0,0,0,0,0,0,39,18,23,23,23,17,20,18,28,27,27,27,27,27,27,27,245,202,96,31,32,32,55,2,558,558,1191,1026,1871,1688,1337,1105,3083,2325,1492,1491,29981,29982,29982,29983,29983,29984,29984,29985,29981,29965]} 1. c4 {[%emt 0:00:14]} e5 {[%emt 0:00:27]} 2. Nc3 {[%emt 0:00:14]} Nf6 {[%emt 0:00:14]} 3. Nf3 {[%emt 0:00:09]} Nc6 {[%emt 0:00:22]} 4. a3 {[%emt 0:00:07]} g6 {[%emt 0:01:41]} 5. d3 {[%emt 0:00:39]} Bg7 {[%emt 0:01:16]} 6. g3 {[%emt 0:00:08] A28: English Opening: Four Knights Variation.} O-O {[%emt 0:01:34]} 7. Bg2 {[%emt 0:00:06]} d5 {[%emt 0:02:57] is now debated instead of 7...d6.} 8. cxd5 {[%emt 0:01:31] The position is equal.} Nxd5 {[%emt 0:00:08]} 9. Bg5 {[%emt 0:01:55] [#]} Nxc3 $146 {[%emt 0:03:20]} ({Predecessor:} 9... Nde7 10. O-O h6 11. Bd2 a5 12. Rc1 Nf5 13. Nb5 Nd6 14. Nxd6 cxd6 15. Qb3 Qe7 {½-½ (37) Gurevich,M (2611)-Balogh,C (2559) Plovdiv 2008}) 10. bxc3 {[%emt 0:00:11]} Bf6 {[%emt 0:03:24]} (10... Qe8 $15 {deserves consideration.}) 11. Bxf6 {[%emt 0:05:50]} Qxf6 {[%emt 0:00:06]} 12. O-O {[%emt 0:01:42]} Bg4 {[%emt 0:09:09]} 13. Rb1 {[%emt 0:04:49]} Rab8 {[%emt 0:06:04]} 14. Qd2 {[%emt 0:05:10]} Bxf3 {[%emt 0:05:33]} 15. Bxf3 {[%emt 0:00:09]} Qd6 {[%emt 0:00:39]} 16. Qa2 {[%emt 0:05:34]} b6 {[%emt 0:08:01]} 17. Rfd1 {[%emt 0:02:36]} Rbd8 {[%emt 0:01:42]} 18. e3 {[%emt 0:02:36]} Na5 {[%emt 0:04:39]} 19. d4 {[%emt 0:01:31]} c5 {[%emt 0:01:51]} 20. a4 {[%emt 0:01:29]} Kg7 {[%emt 0:07:31]} 21. Qe2 {[%emt 0:10:13]} Rfe8 {[%emt 0:03:20][%cal Re5d4]} 22. Qb5 {[%emt 0:07:30]} Qf6 {[%emt 0:03:29]} 23. Kg2 {[%emt 0:01:10]} cxd4 {[%emt 0:00:22]} 24. cxd4 {[%emt 0:00:07]} exd4 {[%emt 0:00:20]} 25. Rxd4 {[%emt 0:02:35]} Rxd4 {[%emt 0:02:32]} 26. Qxe8 {[%emt 0:00:31]} Rd2 {[%emt 0:01:12]} 27. Rb4 {[%emt 0:10:54][%cal Bb1b4,Bb4f4,Bf4f6,Bf6c6,Bc6c8][%mdl 32]} Nb7 {[%emt 0:13:11][%cal Ba5b7,Bb7d6,Bd6e8,Be8c7,Bc7e6][%mdl 32]} 28. Rf4 {[%emt 0:03:28]} Nd6 {[%emt 0:00:06]} 29. Rxf6 {[%emt 0:09:12] Intending Qe7 and mate.} Nxe8 $11 {[%emt 0:00:07][%mdl 4096] Endgame KRB-KRN} 30. Rc6 {[%emt 0:00:08][%cal Oa4a5]} Rd7 {[%emt 0:03:04]} 31. Rc8 {[%emt 0:00:31]} Nc7 {[%emt 0:00:29]} 32. Bc6 {[%emt 0:04:13]} Re7 {[%emt 0:00:07]} 33. e4 {[%emt 0:01:46]} Ne6 {[%emt 0:01:04]} 34. f4 {[%emt 0:00:56]} g5 {[%emt 0:05:42]} 35. Kf3 {[%emt 0:01:57]} gxf4 {[%emt 0:03:53]} 36. gxf4 {[%emt 0:00:05]} Nd4+ {[%emt 0:00:14]} 37. Ke3 {[%emt 0:00:07]} Nxc6 {[%emt 0:00:11]} 38. Rxc6 {[%emt 0:00:05] KR-KR} Re6 $2 {[%emt 0:02:04]} (38... f6 $11) 39. Rc7 $18 {[%emt 0:00:50]} Rh6 {[%emt 0:01:12]} (39... Kf8 $18 40. Rxa7 Rh6) 40. e5 {[%emt 0:02:06]} (40. f5 $1 $16) 40... Rh3+ $14 {[%emt 0:04:50]} 41. Ke4 {[%emt 0:00:08] aiming for e6.} Rxh2 {[%emt 0:00:20]} 42. f5 {[%emt 0:04:24]} (42. Rxa7 $14 Kg8 43. Kf5) 42... Re2+ $2 {[%emt 0:00:59][%mdl 8192] [#]} (42... Rh4+ $11 {and Black is okay.} 43. Ke3 Kf8) 43. Kf4 $1 $18 {[%emt 0:00:06] Hoping for e6.} Rf2+ {[%emt 0:00:21] [#]} 44. Kg4 $1 {[%emt 0:00:13] And now e6 would win.} h5+ {[%emt 0:05:28]} 45. Kg5 {[%emt 0:01:03] White threatens f6+ and mate.} Rg2+ {[%emt 0:04:44]} 46. Kxh5 {[%emt 0:00:33]} Kf8 {[%emt 0:00:21]} 47. f6 {[%emt 0:04:11][%cal Rc7c8]} Ke8 {[%emt 0:00:19]} 48. Re7+ {[%emt 0:00:06]} Kd8 {[%emt 0:00:13]} 49. Rxf7 {[%emt 0:00:26] White mates.} Re2 {[%emt 0:00:23]} 50. Re7 {[%emt 0:00:10]} a6 {[%emt 0:00:27]} 51. Kg6 {[%emt 0:00:16]} b5 {[%emt 0:00:11]} 52. axb5 {[%emt 0:00:53]} axb5 {[%emt 0:00:04]} 53. Kf5 {[%emt 0:00:07] Weighted Error Value: White=0.08 (flawless) /Black=0.42} 1-0

[Event "14th BPB Limburg Open 2022"]
[Site "Maastricht"]
[Date "2022.06.03"]
[Round "1.4"]
[White "Klinova, Masha"]
[Black "Dardha, Daniel"]
[Result "0-1"]
[ECO "B30"]
[WhiteElo "2257"]
[BlackElo "2561"]
[Annotator "TA"]
[PlyCount "128"]
[EventDate "2022.06.03"]
[EventType "swiss"]
[EventCountry "NED"]
[SourceTitle "playchess.com"]
[Source "ChessBase"]
[SourceQuality "1"]
[TimeControl "7200+15"]

{[%evp 9,128,0,33,26,31,20,8,-11,-4,-15,8,16,53,51,67,55,64,33,37,28,59,53,60,48,93,95,95,48,44,33,41,48,60,0,22,0,0,0,0,-102,-81,-74,-77,-118,0,0,0,0,0,-25,-29,-19,-20,-89,-84,-138,-93,-122,-111,-128,-81,-81,-37,-116,-83,-133,-131,-175,-4,-15,-7,-1022,-979,-2151,-9,-16,-9,-22,0,0,0,-26,-29,-63,-62,-64,-69,-60,-54,-56,0,0,0,0,0,0,0,-14,0,0,0,0,0,0,0,0,0,-59,-59,-61,-8,-9,0,-59,0,-614,-8,-66,-14,-66,-70]} 1. e4 {[%emt 0:00:03]} c5 {[%emt 0:03:11]} 2. Nf3 {[%emt 0:00:10]} Nc6 {[%emt 0:00:23]} 3. Bb5 {[%emt 0:00:19]} e6 {[%emt 0:00:50][%cal Be7e6,Be6e5][%mdl 32]} 4. Bxc6 {[%emt 0:00:41]} bxc6 {[%emt 0:00:51]} 5. O-O {[%emt 0:00:05]} d6 {[%emt 0:01:04]} 6. Re1 {[%emt 0:02:51] B30: Sicilian: 2...Nc6 3 Bb5, lines without ...g6.} Ne7 $5 {[%emt 0:03:48][%cal Bg8e7,Be7g6,Bg6f4][%mdl 4] An interesting side line.} 7. b3 {[%emt 0:06:27]} Ng6 {[%emt 0:05:10]} 8. Bb2 {[%emt 0:00:18] The position is equal.} e5 {[%emt 0:02:08]} 9. c3 $1 {[%emt 0:00:05] [#]} Nf4 $146 {[%emt 0:12:28]} ({Predecessor:} 9... Be7 10. d4 cxd4 11. cxd4 O-O 12. h3 Bf6 13. Nc3 Re8 14. Qd2 Bb7 15. Rad1 exd4 16. Nxd4 {1-0 (27) Bauer,T (2219)-Villalba,M (2258) Chess.com INT 2020}) 10. d4 {[%emt 0:02:37]} Qf6 {[%emt 0:06:08]} 11. Bc1 {[%emt 0:05:09]} g5 {[%emt 0:04:11]} 12. Bxf4 {[%emt 0:05:39]} gxf4 {[%emt 0:01:59]} 13. dxe5 {[%emt 0:00:15]} dxe5 {[%emt 0:00:26]} 14. Kh1 {[%emt 0:05:36]} Bg4 {[%emt 0:04:52]} 15. Nbd2 {[%emt 0:01:40]} Rg8 {[%emt 0:04:44]} 16. Qe2 {[%emt 0:01:12]} (16. Nc4 {is more complex.} Rd8 17. Qe2 Bd6 18. Rad1) 16... Rg6 {[%emt 0:07:29]} 17. Nc4 {[%emt 0:04:09]} Bd6 {[%emt 0:01:52]} 18. Nxd6+ {[%emt 0:08:47]} (18. h3 $16 Bxf3 19. Qxf3) 18... Qxd6 $14 {[%emt 0:00:08]} 19. Rad1 {[%emt 0:00:20]} Qf6 {[%emt 0:07:51]} 20. Rd3 {[%emt 0:04:47]} (20. h3 {looks sharper.} Bh5 21. Qd3 a5 22. a4) 20... Kf8 {[%emt 0:09:49][%cal Be8f8,Bf8g7,Bg7h8][%mdl 32]} 21. Qf1 {[%emt 0:13:14]} (21. h3 $14 Bh5 22. Rg1) 21... Kg7 {[%emt 0:07:11]} 22. h3 {[%emt 0:05:18]} Be6 {[%emt 0:04:13]} 23. c4 {[%emt 0:00:23]} Rg8 {[%emt 0:01:44]} 24. Red1 {[%emt 0:09:04]} (24. Qe2 $1 $11 {remains equal.}) 24... Kh8 $17 {[%emt 0:02:53]} 25. Ne1 {[%emt 0:21:26]} Qh4 $1 {[%emt 0:00:47]} 26. Kh2 {[%emt 0:03:43]} f5 {[%emt 0:06:57]} (26... Bg4 $1 $17 {[%cal Rg4d1]} 27. Nf3 Qh5) 27. Qe2 $11 {[%emt 0:04:10]} (27. Nf3 $2 Qe7 28. Rd6 fxe4 29. Nxe5 Rxg2+ 30. Qxg2 Rxg2+ 31. Kxg2 Qg5+ 32. Ng4 Bxg4 33. Rd8+ Kg7 34. hxg4 Qxg4+ 35. Kh2 Qe2 $19) 27... f3 {[%emt 0:03:08]} 28. Rxf3 {[%emt 0:01:18]} fxe4 $40 {[%emt 0:04:30][%mdl 128] Black is up to no good.} 29. Rg3 {[%emt 0:00:07]} (29. Rc3 $5 {[%cal Re2e3]}) 29... Rxg3 {[%emt 0:02:54]} 30. fxg3 {[%emt 0:00:05]} Rxg3 {[%emt 0:01:11][%cal Re6h3]} 31. Rd8+ {[%emt 0:06:41]} Kg7 $1 $17 {[%emt 0:03:12][%cal Re6h3] ...Bxh3 is the strong threat.} ({Don't play} 31... Qxd8 $6 32. Kxg3 Qg5+ 33. Kh2 $11) 32. Ra8 {[%emt 0:00:12] [#]} (32. Re8 $142 Bf7 33. Ra8 (33. Rxe5 Rxh3+ 34. gxh3 Qf4+ 35. Kh1 Qxe5 $17)) 32... Bxh3 $1 {[%emt 0:02:41][%mdl 512]} 33. Rxa7+ {[%emt 0:01:31]} (33. Kg1 Kh6) 33... Kg6 {[%emt 0:00:35] ( -> ...Bxg2+). Chess con chili.} 34. Kg1 {[%emt 0:00:06]} Bf5 {[%emt 0:01:57]} (34... Qf4 $142 {[%cal Og3e3] Strongly threatening ...Re3!} 35. Rc7 Bg4) 35. Ra8 {[%emt 0:02:43]} Kh6 {[%emt 0:01:48]} 36. Rf8 {[%emt 0:01:30]} (36. Ra6 $15) 36... Bg6 {[%emt 0:00:32]} 37. Qf2 {[%emt 0:01:56]} (37. Rf1 $142) 37... Qg5 $1 {[%emt 0:01:24]} 38. Rc8 {[%emt 0:02:15] [#]} e3 $2 {[%emt 0:01:39]} (38... Rg4 $1 $19 {[%cal Rg4f4] aiming for ...Rf4.} 39. Rxc6 Rf4) 39. Qf8+ $11 {[%emt 0:00:27]} Kh5 {[%emt 0:00:02]} 40. Qd8 $2 {[%emt 0:02:27][%mdl 8192]} (40. a4 $11) 40... Qf5 $19 {[%emt 0:00:38]} 41. Qf8 {[%emt 0:00:12]} Qb1 $2 {[%emt 0:00:19]} (41... Bf7 $19 42. Qe7 Qf2+ 43. Kh2 Rg5 44. Qxg5+ Kxg5 45. Nf3+ Kh5) 42. Qf1 $11 {[%emt 0:00:06]} Qxa2 {[%emt 0:00:44]} 43. Rxc6 {[%emt 0:00:12]} Qxb3 {[%emt 0:00:19]} (43... Qb2 $5 {[%cal Rg3g4]}) 44. Rxc5 {[%emt 0:00:15]} Qc3 {[%emt 0:00:14] Active counter play!} 45. Qe2+ {[%emt 0:00:11]} Kh6 {[%emt 0:00:03]} 46. Rc6 {[%emt 0:00:13]} Qd2 {[%emt 0:00:10]} 47. Qf1 {[%emt 0:00:08]} Qd4 {[%emt 0:00:26]} 48. Qe2 {[%emt 0:00:44]} Rg5 {[%emt 0:00:19]} 49. Nf3 {[%emt 0:00:05][%csl LRd4,LRg5] Prevents Qd2.} Qa1+ {[%emt 0:00:11]} (49... Qg4 $15 50. Rb6 e4) 50. Qf1 {[%emt 0:00:12]} Qxf1+ {[%emt 0:00:21]} 51. Kxf1 {[%emt 0:00:04][%mdl 4096] Endgame KRB-KRN} Rh5 {[%emt 0:00:16]} 52. Ke2 {[%emt 0:00:10]} e4 {[%emt 0:00:07]} 53. Ne1 {[%emt 0:00:29]} Rh1 {[%emt 0:00:16]} 54. Nc2 {[%emt 0:00:05]} Kg5 {[%emt 0:00:07]} 55. Nxe3 {[%emt 0:00:09]} Ra1 {[%emt 0:00:11]} 56. Kf2 {[%emt 0:00:41]} Kf4 {[%emt 0:00:32] Threatens to win with ...Ra2+.} 57. Nd5+ {[%emt 0:00:08]} Ke5 {[%emt 0:00:01]} 58. Ne7 {[%emt 0:00:31]} (58. Ne3 $11) 58... Ra2+ $15 {[%emt 0:00:17]} 59. Kg3 {[%emt 0:00:13]} Bf7 {[%emt 0:00:15]} (59... Ra3+ $1 $15 60. Kg4 h5+ 61. Kh4 Bf7 62. Ng6+ Bxg6 63. Rxg6 Ra7) 60. Rh6 $11 {[%emt 0:00:15]} e3 {[%emt 0:00:30]} 61. Rxh7 {[%emt 0:00:19]} (61. Nc6+ $11 Kf5 62. Rh4) 61... Bxc4 {[%emt 0:00:12]} (61... e2 $1 $15 62. Kf2 Bxc4 63. Rh5+ Ke4) 62. Rh1 $2 {[%emt 0:00:03][%mdl 8192] [#]} (62. Nc6+ $11 Kd6 63. Nd4) 62... Ke4 $2 {[%emt 0:00:14]} (62... Ra6 $1 $19 {White must now prevent ...e2.} 63. Kg4 e2) 63. Ng6 {[%emt 0:00:25]} ({Better is} 63. Rh4+ $1 $11 Kd3 64. Nc6) 63... Ba6 {[%emt 0:00:15]} (63... e2 $15 64. Nf4 Ra3+ 65. Kf2 e1=R 66. Rxe1+ Kxf4) 64. Nf4 {[%emt 0:00:13]} ({White should try} 64. Rh7 $11) 64... Ra5 {[%emt 0:00:08] Weighted Error Value: White=0.52/Black=0.37} 0-1

[Event "14th BPB Limburg Open 2022"]
[Site "Maastricht"]
[Date "2022.06.03"]
[Round "1.5"]
[White "Van Foreest, Lucas"]
[Black "Warakomska, Anna"]
[Result "1-0"]
[ECO "D13"]
[WhiteElo "2572"]
[BlackElo "2251"]
[Annotator "TA"]
[PlyCount "63"]
[EventDate "2022.06.03"]
[EventType "swiss"]
[EventCountry "NED"]
[SourceTitle "playchess.com"]
[Source "ChessBase"]
[SourceQuality "1"]
[TimeControl "7200+15"]

{[%evp 15,63,0,6,0,13,0,0,0,19,32,26,29,21,-38,0,-8,0,-13,0,0,0,0,0,0,13,-17,0,0,0,0,0,0,0,0,0,-4,114,113,148,148,603,603,600,604,712,691,640,642,468,393]} 1. d4 {[%emt 0:01:50]} d5 {[%emt 0:00:26]} 2. c4 {[%emt 0:00:26]} c6 {[%emt 0:00:03]} 3. Nf3 {[%emt 0:00:06]} Nf6 {[%emt 0:00:26]} 4. cxd5 {[%emt 0:00:25]} cxd5 {[%emt 0:00:05]} 5. Nc3 {[%emt 0:00:04]} Nc6 {[%emt 0:00:24]} 6. Bf4 {[%emt 0:00:20]} a6 {[%emt 0:01:00]} 7. Rc1 {[%emt 0:00:43]} Bf5 {[%emt 0:03:18]} 8. e3 {[%emt 0:02:49]} Rc8 {[%emt 0:01:30]} 9. Ne5 {[%emt 0:04:22] D13: Slav Defence: Exchange variation without ...Bf5.} Nxe5 {[%emt 0:17:03]} 10. dxe5 {[%emt 0:08:11]} Ne4 {[%emt 0:00:55]} 11. Nxe4 {[%emt 0:00:06] The position is equal.} Rxc1 {[%emt 0:03:26]} 12. Qxc1 {[%emt 0:00:49] Strongly threatening Ng3.} dxe4 {[%emt 0:08:47]} 13. Be2 {[%emt 0:08:20]} Qa5+ {[%emt 0:04:44]} 14. Kf1 {[%emt 0:00:11] [#]} (14. Qd2 $11 Qxd2+ 15. Kxd2) 14... g6 $146 {[%emt 0:03:14]} ({Predecessor:} 14... Bd7 15. a3 e6 16. b4 Qb6 17. Qc4 a5 18. Qxe4 axb4 19. axb4 Bxb4 20. h4 Bc6 21. Qb1 Bc5 22. Qc2 Qb4 23. Bf3 {½-½ (23) Akobian,V (2556)-Gonzalez,R (2483) Las Vegas 2005}) 15. a3 {[%emt 0:08:47]} Bg7 {[%emt 0:02:15]} 16. b4 {[%emt 0:00:40]} Qd8 {[%emt 0:02:04]} 17. g4 {[%emt 0:00:57]} Be6 {[%emt 0:00:51]} 18. Kg2 {[%emt 0:00:09]} O-O {[%emt 0:02:11]} 19. h3 {[%emt 0:05:15]} Qc8 {[%emt 0:09:20]} 20. Rd1 {[%emt 0:10:01]} Rd8 {[%emt 0:07:08]} 21. Rxd8+ {[%emt 0:00:39]} Qxd8 {[%emt 0:00:08]} 22. Qc5 {[%emt 0:00:03]} h6 {[%emt 0:03:01]} 23. Bc4 {[%emt 0:06:34]} Qd7 {[%emt 0:19:39]} 24. Bxe6 {[%emt 0:00:12]} Qxe6 $11 {[%emt 0:00:06][%mdl 4096] Endgame KQB-KQB} 25. b5 {[%emt 0:00:06][%cal Bb4b5,Bb5b6][%mdl 32]} h5 {[%emt 0:05:17]} (25... axb5 $11 26. Qxb5 g5) 26. gxh5 $16 {[%emt 0:01:55]} gxh5 {[%emt 0:00:07] [#]} 27. b6 $1 {[%emt 0:00:04]} Bf8 $2 {[%emt 0:06:14][%mdl 8192] This move loses the game for Black.} (27... f6 $16) 28. Qc7 $18 {[%emt 0:00:39] White is clearly winning.} Qd5 {[%emt 0:01:20]} 29. Qc8 {[%emt 0:00:07]} Kg7 {[%emt 0:08:30] [#]} 30. Bh6+ $1 {[%emt 0:00:09][%mdl 512]} Kxh6 {[%emt 0:00:05]} 31. Qxf8+ {[%emt 0:00:03]} Kg6 {[%emt 0:00:08]} 32. Qxe7 {[%emt 0:00:01] Weighted Error Value: White=0.06 (flawless) /Black=0.50} 1-0